bitfinex-derivatives/quotes_ETHF0:USTF0_20250323
["timestamp","ask_amount","ask_price","bid_price","bid_amount"]
[1742750341955,3.2078,2002.8,2002.7,0.99883]
[1742750342358,3.2078,2002.8,2002.7,2.33433]
[1742750342757,4.23373,2002.9,2002.8,0.99878]
[1742750342966,4.23373,2002.9,2002.8,2.33428]
[1742750343154,3.2078,2003.4,2002.8,1.3355]
[1742750343359,0.99856,2003.3,2003.2,0.99857]
[1742750343659,2.31416,2003.3,2003.2,0.99857]
[1742750344162,1.3156,2003.3,2003.2,0.99857]
[1742750344368,6.86546488,2003.5,2003.1,3.83204]
[1742750344564,3.248,2003.4,2003.3,0.99849]
[1742750344764,4.24648,2003.4,2003.3,0.99849]
[1742750345666,0.99848,2003.4,2003.3,0.99849]
[1742750345867,2.31905488,2003.5,2003.4,0.99848]
[1742750346269,1.32059488,2003.5,2003.3,0.9985]
[1742750346472,2.31906488,2003.5,2003.4,1.3466]
[1742750346659,0.99853,2003.3,2003.2,0.00749232]
[1742750347362,0.99853,2003.3,2003.2,1.35409232]
[1742750347559,0.99853,2003.3,2003.2,2.35267232]
[1742750349666,3.247,2003.4,2003.2,1.35409232]
[1742750349871,4.2455,2003.4,2003.3,0.99853]
[1742750350281,3.247,2003.4,2003.3,0.99853]
[1742750350471,4.24548,2003.4,2003.3,0.99853]
[1742750350671,0.99853,2003.3,2003.2,4.21383232]
[1742750350870,2.39443,2003.3,2003.2,3.21529232]
[1742750351470,2.39443,2003.3,2003.2,0.00749232]
[1742750352464,2.39443,2003.3,2003.2,1.00607232]
[1742750352859,1.3959,2003.3,2003.2,1.00607232]
[1742750353070,3.247,2003.4,2003.3,0.99853]
[1742750353263,3.247,2003.4,2003.2,1.00603232]
[1742750353264,0.99853,2003.3,2003.2,1.00603232]
[1742750353463,4.24551,2003.4,2003.3,0.99853]
[1742750353868,0.99853,2003.3,2003.2,1.00603232]
[1742750354075,2.38223,2003.3,2003.2,1.00603232]
[1742750354264,3.247,2003.4,2003.3,0.99853]
[1742750354265,4.24551,2003.4,2003.3,0.99853]
[1742750354774,0.99853,2003.3,2003.2,1.00602232]
[1742750355166,2.38143,2003.3,2003.2,1.00602232]
[1742750355462,1.3829,2003.3,2003.2,1.00602232]
[1742750356067,2.38143,2003.3,2003.2,0.00749232]
[1742750356266,2.38143,2003.3,2003.2,1.00607232]
[1742750356673,4.24552,2003.4,2003.3,0.99853]
[1742750356872,5.62842,2003.4,2003.3,0.41002025]
[1742750357169,0.00499488,2003.5,2003.4,0.99848]
[1742750357570,1.00342488,2003.5,2003.4,0.99848]
[1742750357778,0.00499488,2003.5,2003.4,0.99848]
[1742750359370,1.37489488,2003.5,2003.4,0.99848]
[1742750359572,1.37489488,2003.5,2003.3,1.64129]
[1742750359771,2.37336488,2003.5,2003.4,0.99848]
[1742750360174,1.37489488,2003.5,2003.4,0.99848]
[1742750360374,0.00499488,2003.5,2003.4,0.99848]
[1742750360976,1.00342488,2003.5,2003.4,0.99848]
[1742750361173,1.00342488,2003.5,2003.3,1.3157]
[1742750361174,0.99848,2003.4,2003.3,1.3157]
[1742750361376,2.38528,2003.4,2003.3,2.31423]
[1742750361876,1.00346488,2003.5,2003.4,0.99848]
[1742750362473,0.00499488,2003.5,2003.4,0.99848]
[1742750363272,1.00342488,2003.5,2003.4,0.99848]
[1742750363574,0.00499488,2003.5,2003.4,0.99848]
[1742750365080,0.00499488,2003.5,2003.4,2.40588]
[1742750366372,0.00499488,2003.5,2003.4,5.64588]
[1742750367281,0.00499488,2003.5,2003.4,11.60388]
[1742750367472,0.00499488,2003.5,2003.4,14.10388]
[1742750368276,0.00499488,2003.5,2003.4,8.36388]
[1742750368470,0.00499488,2003.5,2003.4,11.60888]
[1742750369578,0.00499488,2003.5,2003.4,8.36388]
[1742750369981,1.33019488,2003.5,2003.4,8.36388]
[1742750370176,2.32862488,2003.5,2003.4,8.36388]
[1742750370482,2.32862488,2003.5,2003.4,1.4074]
[1742750371077,2.32862488,2003.5,2003.4,2.40588]
[1742750371275,2.32862488,2003.5,2003.4,1.4074]
[1742750371780,0.00499488,2003.5,2003.4,2.40588]
[1742750371979,1.00342488,2003.5,2003.4,3.10848]
[1742750372273,1.00342488,2003.5,2003.4,1.4074]
[1742750374273,4.24542488,2003.5,2003.4,1.4074]
[1742750374472,4.24542488,2003.5,2003.3,0.6729]
[1742750374473,0.9985,2003.4,2003.2,1.44685465]
[1742750374780,2.3736,2003.4,2003.2,1.44685465]
[1742750375083,0.99858,2003.2,2003.1,1.65902]
[1742750375578,0.99858,2003.2,2003.1,3.03882]
[1742750375884,0.99858,2003.2,2003.1,2.0402]
[1742750376175,0.99858,2003.2,2003.1,3.03883]
[1742750376675,2.38256,2003.3,2003.1,3.03883]
[1742750376881,1.384,2003.3,2003.2,1.4166]
[1742750377082,2.38253,2003.3,2003.2,1.4166]
[1742750377379,2.38253,2003.3,2003.2,2.41518]
[1742750377580,1.384,2003.3,2003.2,3.06858]
[1742750378182,2.38253,2003.3,2003.2,2.07]
[1742750378386,1.384,2003.3,2003.2,3.06858]
[1742750378579,7.1279,2003.4,2003.3,0.99853]
[1742750378782,7.8224,2003.4,2003.3,2.29473]
[1742750379084,4.5814,2003.4,2003.3,2.29473]
[1742750379383,4.5814,2003.4,2003.3,0.99853]
[1742750382083,5.57988,2003.4,2003.2,0.99855]
[1742750382278,3.01163,2003.3,2003.1,0.6604]
[1742750382478,1.3185,2003.2,2003.1,2.9378]
[1742750385078,2.31708,2003.2,2003.0,4.91593]
[1742750385272,5.2243,2003.2,2002.9,1.00620232]
[1742750385480,0.99868,2003.0,2002.9,1.00620232]
[1742750385677,4.23768,2003.0,2002.9,0.00749232]
[1742750385987,0.99883,2002.7,2002.5,1.7086]
[1742750386179,0.6655,2002.6,2002.5,1.7086]
[1742750386383,2.0727,2002.6,2002.5,0.9989]
[1742750386685,2.0727,2002.6,2002.5,0.99893]
[1742750386686,3.0716,2002.6,2002.5,0.99893]
[1742750386986,6.3126,2002.6,2002.4,2.40455]
[1742750387186,1.4072,2002.5,2002.4,2.40455]
[1742750390190,4.2427,2003.0,2002.9,0.9987]
[1742750390775,3.244,2003.0,2002.9,0.9987]
[1742750391478,4.6466,2003.0,2002.9,0.9987]
[1742750391886,5.64528,2003.0,2002.9,0.9987]
[1742750392086,4.6466,2003.0,2002.9,0.9987]
[1742750392580,1.4026,2003.0,2002.9,0.9987]
[1742750392779,1.4026,2003.0,2002.9,1.7023]
[1742750395086,2.40128,2003.0,2002.9,1.7023]
[1742750395294,2.40128,2003.0,2002.9,0.7036]
[1742750395593,1.4026,2003.0,2002.9,1.70233]
[1742750396483,2.40128,2003.0,2002.9,1.70233]
[1742750396893,1.4026,2003.0,2002.9,1.70233]
[1742750398194,2.40128,2003.0,2002.9,0.7036]
[1742750398388,2.40128,2003.0,2002.9,1.70233]
[1742750398590,2.40128,2003.0,2002.9,3.11413]
[1742750398895,1.4026,2003.0,2002.9,3.11413]
[1742750400195,2.40128,2003.0,2002.9,3.11413]
[1742750400700,2.40128,2003.0,2002.9,2.1154]
[1742750400991,2.40128,2003.0,2002.9,1.4118]
[1742750401295,0.99873,2002.9,2002.8,0.99875]
[1742750401494,2.40563,2002.9,2002.8,2.40645]
[1742750402591,1.4069,2002.9,2002.8,2.40645]
[1742750404195,6.5494,2003.2,2002.8,7.11239]
[1742750404501,1.4173,2003.1,2003.0,0.99868]
[1742750404890,1.4173,2003.1,2003.0,1.66158]
[1742750408197,0.6567,2003.3,2003.2,0.99858]
[1742750408499,1.65523,2003.3,2003.2,0.99858]
[1742750408797,0.99858,2003.2,2003.1,1.33187949]
[1742750409002,0.99863,2003.1,2003.0,1.66156]
[1742750409300,0.6692,2003.1,2003.0,1.66156]
[1742750409703,1.2828,2003.2,2003.1,0.99863]
[1742750411001,2.28138,2003.2,2003.1,0.99863]
[1742750411200,1.2828,2003.2,2003.1,0.99863]
[1742750411994,1.2828,2003.2,2003.1,3.02413]
[1742750412204,2.28138,2003.2,2003.1,3.02413]
[1742750412703,1.2828,2003.2,2003.1,3.02413]
[1742750413005,2.28138,2003.2,2003.1,3.02413]
[1742750413195,1.2828,2003.2,2003.1,3.02413]
[1742750413901,2.28138,2003.2,2003.1,3.02413]
[1742750415798,1.2828,2003.2,2003.1,3.02413]
[1742750417103,2.28138,2003.2,2003.1,3.02413]
[1742750418015,1.2828,2003.2,2003.1,3.02413]
[1742750418917,2.28138,2003.2,2003.1,3.02413]
[1742750419415,1.2828,2003.2,2003.1,3.02413]
[1742750419717,1.2828,2003.2,2003.1,2.38747553]
[1742750423209,2.28138,2003.2,2003.1,2.38747553]
[1742750423414,1.2828,2003.2,2003.1,2.38747553]
[1742750433729,1.2828,2003.2,2003.1,1.15933732]
[1742750436929,1.2828,2003.2,2003.1,2.49213732]
[1742750446933,0.51027488,2003.5,2003.4,0.99848]
[1742750447129,2.49508,2004.3,2003.5,3.49443]
[1742750447436,2.97267,2003.9,2003.8,0.99828]
[1742750449334,1.9744,2003.9,2003.8,0.99828]
[1742750449642,2.97263,2003.9,2003.8,0.99828]
[1742750450335,1.9744,2003.9,2003.8,0.99828]
[1742750453943,1.9744,2003.9,2003.8,2.39018]
[1742750456044,1.9744,2003.9,2003.8,0.99828]
[1742750457037,1.9744,2003.9,2003.8,3.06768]
[1742750457730,0.71703,2003.9,2003.8,3.06768]
[1742750457935,0.70953768,2003.9,2003.8,3.06768]
[1742750458139,0.00749232,2004.1,2004.0,0.99818]
[1742750458338,0.00749232,2004.1,2004.0,4.20598]
[1742750460140,1.00562232,2004.1,2004.0,4.20598]
[1742750460343,1.00562232,2004.1,2004.0,3.2078]
[1742750460646,1.00562232,2004.1,2004.0,4.20598]
[1742750461244,2.97322232,2004.1,2004.0,3.2078]
[1742750461747,2.97322232,2004.1,2004.0,4.20598]
[1742750462437,2.97322232,2004.1,2004.0,3.2078]
[1742750465144,6.20922232,2004.1,2004.0,3.2078]
[1742750468549,6.20922232,2004.1,2004.0,4.20598]
[1742750468852,6.20922232,2004.1,2004.0,3.2078]
[1742750469049,6.20922232,2004.1,2004.0,4.20598]
[1742750469346,6.20922232,2004.1,2004.0,3.2078]
[1742750469941,6.20922232,2004.1,2004.0,4.5494]
[1742750470447,6.20922232,2004.1,2004.0,3.2078]
[1742750471540,0.00749232,2004.1,2004.0,3.2078]
[1742750471744,3.67302232,2004.1,2004.0,3.2078]
[1742750472049,3.67302232,2004.1,2004.0,4.20598]
[1742750472248,3.67302232,2004.1,2004.0,4.6209]
[1742750473150,3.67302232,2004.1,2004.0,5.61908]
[1742750475750,3.67302232,2004.1,2004.0,3.2078]
[1742750477149,0.99818,2004.0,2003.9,0.9982]
[1742750477344,1.3094,2004.0,2003.9,2.91518324]
[1742750477743,2.30758,2004.0,2003.9,2.91518324]
[1742750478450,0.99832,2003.8,2003.6,0.00749232]
[1742750478755,7.0769,2003.7,2003.3,1.66642]
[1742750479053,0.99846,2003.5,2003.4,0.53560443]
[1742750479354,0.99846,2003.5,2003.4,0.70332932]
[1742750479864,0.99846,2003.5,2003.4,1.3071]
[1742750480748,1.3094,2003.6,2003.4,1.3071]
[1742750480947,0.99843,2003.5,2003.4,1.3071]
[1742750481156,0.99843,2003.5,2003.4,2.30558]
[1742750481352,5.53281,2003.6,2003.4,2.30558]
[1742750481652,1.3743,2003.5,2003.4,0.99848]
[1742750482553,2.37273,2003.5,2003.4,0.99848]
[1742750483956,2.37273,2003.5,2003.3,1.66639]
[1742750484148,1.3566,2003.4,2003.3,1.66639]
[1742750488861,2.35508,2003.4,2003.3,1.66639]
[1742750489070,1.3566,2003.4,2003.3,1.66639]
[1742750491858,1.3566,2003.4,2003.3,4.87419]
[1742750493563,2.35508,2003.4,2003.3,4.87419]
[1742750494769,1.3566,2003.4,2003.3,4.87419]
[1742750494958,2.35508,2003.4,2003.3,4.87419]
[1742750495162,2.35508,2003.4,2003.3,6.24259]
[1742750496257,2.35508,2003.4,2003.3,3.03479]
[1742750496657,1.3566,2003.4,2003.3,3.03479]
[1742750497258,2.35508,2003.4,2003.3,3.03479]
[1742750510469,1.3566,2003.4,2003.3,3.03479]
[1742750511678,1.3566,2003.4,2003.3,3.57001078]
[1742750512470,1.3566,2003.4,2003.3,3.56999251]
[1742750512778,2.35508,2003.4,2003.3,3.56999251]
[1742750513579,1.3566,2003.4,2003.3,3.56999251]
[1742750514476,1.3566,2003.4,2003.3,3.57001676]
[1742750515781,2.35508,2003.4,2003.3,3.57001676]
[1742750516381,1.3566,2003.4,2003.3,3.57001676]
[1742750516582,1.3566,2003.4,2003.3,3.57014788]
[1742750518486,1.3566,2003.4,2003.3,3.57015145]
[1742750520085,2.35508,2003.4,2003.3,3.57015145]
[1742750520290,1.3566,2003.4,2003.3,3.57015145]
[1742750520591,1.3566,2003.4,2003.3,3.5702241]
[1742750522685,2.35508,2003.4,2003.3,3.5702241]
[1742750523485,2.35508,2003.4,2003.3,3.03479]
[1742750523691,2.35508,2003.4,2003.3,3.57022264]
[1742750523892,1.3566,2003.4,2003.3,3.57022264]
[1742750524086,2.35508,2003.4,2003.3,3.57022264]
[1742750524893,2.35508,2003.4,2003.3,3.03479]
[1742750525394,2.35508,2003.4,2003.3,3.5702823]
[1742750525585,1.3566,2003.4,2003.3,3.5702823]
[1742750526087,1.3566,2003.4,2003.3,3.57028824]
[1742750526283,2.35508,2003.4,2003.3,2.57182042]
[1742750526486,2.35508,2003.4,2002.6,3.98591751]
[1742750526487,0.99878,2002.9,2002.6,3.98591751]
[1742750526689,4.20468,2003.0,2002.9,1.3255]
[1742750526890,4.20468,2003.0,2002.9,1.86150207]
[1742750527090,4.84398,2003.0,2002.9,1.86150207]
[1742750527286,4.84398,2003.0,2002.9,1.3255]
[1742750527992,4.84398,2003.0,2002.9,2.32423]
[1742750528295,0.99875,2002.9,2002.8,0.99876]
[1742750528493,0.99875,2002.9,2002.8,1.5340272]
[1742750528997,0.99875,2002.9,2002.8,1.53403776]
[1742750529296,0.99875,2002.9,2002.8,0.99876]
[1742750529797,0.99875,2002.9,2002.8,2.35426]
[1742750531297,4.543,2003.0,2002.7,1.35479232]
[1742750531298,0.99878,2002.8,2002.7,1.35479232]
[1742750531494,0.99878,2002.8,2002.7,2.72489232]
[1742750531692,4.20478,2002.8,2002.7,2.72489232]
[1742750532194,3.206,2002.8,2002.7,3.72372232]
[1742750533296,3.206,2002.8,2002.7,2.72489232]
[1742750533297,4.20478,2002.8,2002.7,2.72489232]
[1742750534198,4.20478,2002.8,2002.7,3.72372232]
[1742750534199,3.206,2002.8,2002.7,3.72372232]
[1742750536300,3.206,2002.8,2002.7,1.00632232]
[1742750536499,3.206,2002.8,2002.7,3.72532232]
[1742750537397,4.20478,2002.8,2002.7,3.72532232]
[1742750537900,4.20478,2002.8,2002.7,2.72649232]
[1742750538103,7.41258,2002.8,2002.7,2.72649232]
[1742750538792,7.41258,2002.8,2002.7,1.40329232]
[1742750539799,7.41258,2002.8,2002.7,0.00749232]
[1742750552809,4.20658,2002.8,2002.7,1.00632232]
[1742750553013,4.20658,2002.8,2002.7,3.73312232]
[1742750553014,6.4148,2002.8,2002.7,3.73312232]
[1742750553908,3.2078,2002.8,2002.7,3.73312232]
[1742750554301,5.862,2003.0,2002.9,0.99873]
[1742750554512,3.2078,2003.1,2003.0,0.99868]
[1742750555510,3.2078,2003.1,2003.0,1.70108]
[1742750556517,3.207,2003.4,2003.3,0.99849]
[1742750556907,4.20548,2003.4,2003.3,0.99849]
[1742750557114,3.207,2003.4,2003.1,0.6441]
[1742750557314,0.99858,2003.2,2003.1,0.6441]
[1742750557617,4.20558,2003.2,2003.1,0.6441]
[1742750559218,4.20558,2003.2,2003.1,1.64273]
[1742750560514,4.20558,2003.2,2003.1,0.6441]
[1742750561523,4.87378,2003.2,2003.1,0.6441]
[1742750561907,4.87378,2003.2,2003.1,1.64273]
[1742750562510,3.207,2003.2,2003.1,1.64273]
[1742750563013,4.21298232,2003.4,2003.3,0.99853]
[1742750563218,3.21449232,2003.4,2003.3,0.99853]
[1742750564018,4.21297232,2003.4,2003.3,0.99853]
[1742750565317,5.52327232,2003.4,2003.3,0.99853]
[1742750566016,5.52327232,2003.4,2003.2,0.99854]
[1742750566219,5.52327232,2003.4,2003.1,0.6441]
[1742750566220,0.99858,2003.2,2003.1,0.6441]
[1742750567020,2.30888,2003.2,2003.1,0.6441]
[1742750567714,2.30888,2003.2,2003.1,1.64273]
[1742750568520,2.30888,2003.2,2003.1,2.31033]
[1742750569519,2.30888,2003.2,2003.1,1.3117]
[1742750571518,0.99863,2003.1,2003.0,4.20644]
[1742750571722,2.39893,2003.1,2003.0,4.20644]
[1742750572417,2.39893,2003.1,2003.0,3.2078]
[1742750573710,2.39893,2003.1,2003.0,4.20648]
[1742750574726,2.39893,2003.1,2003.0,0.99868]
[1742750575120,2.39893,2003.1,2003.0,2.33058]
[1742750583134,1.4003,2003.1,2003.0,2.33058]
[1742750583722,2.39893,2003.1,2003.0,2.33058]
[1742750584030,1.4003,2003.1,2003.0,6.07224737]
[1742750587234,2.39893,2003.1,2003.0,4.74034737]
[1742750587436,2.39893,2003.1,2003.0,4.74055625]
[1742750587626,2.39893,2003.1,2003.0,3.74187625]
[1742750588134,2.39893,2003.1,2003.0,4.74055625]
[1742750588334,2.39893,2003.1,2003.0,6.09755625]
[1742750589330,2.39893,2003.1,2003.0,6.09728812]
[1742750589836,2.39893,2003.1,2003.0,6.09723821]
[1742750590241,2.39893,2003.1,2003.0,5.09855821]
[1742750590537,2.39893,2003.1,2003.0,3.74155821]
[1742750591230,2.39893,2003.1,2003.0,3.7415571]
[1742750592035,2.39893,2003.1,2003.0,5.0750571]
[1742750593039,2.39893,2003.1,2003.0,1.8672571]
[1742750593337,2.39893,2003.1,2003.0,1.86725567]
[1742750594134,2.39893,2003.1,2003.0,2.53375567]
[1742750595041,2.39893,2003.1,2003.0,2.53427225]
[1742750595937,2.39893,2003.1,2003.0,1.86777225]
[1742750597044,2.39893,2003.1,2003.0,1.86782717]
[1742750598138,2.39893,2003.1,2003.0,0.53432717]
[1742750598343,0.99878,2002.8,2002.7,6.24860232]
[1742750598546,0.99878,2002.8,2002.7,6.78316074]
[1742750599341,0.99878,2002.8,2002.7,0.54205074]
[1742750599731,0.99878,2002.8,2002.7,0.00749232]
[1742750600043,2.39228,2002.8,2002.7,0.00749232]
[1742750600344,5.59828,2002.8,2002.7,0.00749232]
[1742750606933,0.59828,2002.8,2002.7,0.00749232]
[1742750607349,1.59706,2002.8,2002.7,0.00749232]
[1742750610251,2.98826,2002.8,2002.7,0.00749232]
[1742750620657,2.38998,2002.8,2002.7,1.70432232]
[1742750620960,5.59598,2002.8,2002.7,2.38142232]
[1742750621762,5.59598,2002.8,2002.7,1.38259232]
[1742750621962,5.59598,2002.8,2002.7,2.38142232]
[1742750622164,5.59598,2002.8,2002.7,3.71792232]
[1742750622956,5.862,2003.0,2002.7,2.71909232]
[1742750623156,3.206,2002.9,2002.8,2.38398]
[1742750625165,8.2573,2003.0,2002.9,0.99873]
[1742750625367,10.0667,2003.0,2002.9,2.29963]
[1742750625966,10.0667,2003.0,2002.9,1.3009]
[1742750627963,4.2047,2003.0,2002.9,1.3009]
[1742750629664,4.98457452,2003.0,2002.9,1.3009]
[1742750631570,4.2047,2003.0,2002.9,1.3009]
[1742750639769,4.98429149,2003.0,2002.9,1.3009]
[1742750645878,3.206,2003.3,2003.0,2.4967]
[1742750646080,4.5402,2003.3,2003.2,0.99855]
[1742750646585,4.5402,2003.3,2003.2,2.34155]
[1742750646882,0.00749232,2003.4,2003.3,0.99853]
[1742750647087,0.00749232,2003.4,2003.3,1.67973]
[1742750657292,1.29899232,2003.4,2003.3,1.67973]
[1742750667709,2.29747232,2003.4,2003.3,0.99853]
[1742750668307,2.97877232,2003.4,2003.3,0.99853]
[1742750671217,0.99858,2003.2,2003.1,4.2064]
[1742750671411,0.99863,2003.1,2003.0,2.27853]
[1742750671611,2.7253,2003.1,2003.0,2.27853]
[1742750673018,1.3677,2003.1,2003.0,2.27853]
[1742750673415,1.3677,2003.1,2003.0,2.95133]
[1742750673819,1.3677,2003.1,2003.0,3.4847625]
[1742750674017,1.3677,2003.1,2003.0,3.48485558]
[1742750677715,1.3677,2003.1,2003.0,3.48548276]
[1742750678122,1.3677,2003.1,2003.0,2.81268276]
[1742750678311,2.36633,2003.1,2003.0,2.81268276]
[1742750678517,2.0095,2003.1,2003.0,2.81268276]
[1742750679119,2.0095,2003.1,2003.0,0.99863]
[1742750679327,3.00813,2003.1,2003.0,0.99863]
[1742750679622,2.0095,2003.1,2003.0,0.99863]
[1742750679921,2.0095,2003.1,2003.0,2.40653]
[1742750693430,3.00813,2003.1,2003.0,2.40653]
[1742750693630,0.99868,2003.0,2002.9,4.20649]
[1742750693937,5.1658,2003.0,2002.7,1.00628232]
[1742750694134,0.99878,2002.8,2002.7,0.00749232]
[1742750694331,4.20278,2002.8,2002.7,0.00749232]
[1742750695325,7.41058,2002.8,2002.7,0.00749232]
[1742750697239,8.07878,2002.8,2002.7,0.00749232]
[1742750701331,8.07878,2002.8,2002.7,1.39959232]
[1742750703137,8.07878,2002.8,2002.7,0.00749232]
[1742750706634,4.87098,2002.8,2002.7,0.00749232]
[1742750707037,4.87098,2002.8,2002.7,1.29509232]
[1742750707439,4.87098,2002.8,2002.7,0.00749232]
[1742750709436,0.99888,2002.6,2002.5,3.2078]
[1742750709636,0.99903,2002.3,2002.1,0.99909]
[1742750709840,4.20403,2002.3,2002.2,1.3423]
[1742750710036,4.20403,2002.3,2002.2,2.34138]
[1742750710639,4.494,2002.3,2002.2,2.34138]
[1742750711043,5.49303,2002.3,2002.2,1.3423]
[1742750711247,5.49303,2002.3,2002.2,2.34138]
[1742750711546,5.49303,2002.3,2002.2,1.3423]
[1742750712348,4.494,2002.3,2002.2,2.34138]
[1742750713349,5.49303,2002.3,2002.2,2.34138]
[1742750713546,5.49303,2002.3,2002.2,1.3423]
[1742750714148,4.494,2002.3,2002.2,2.34138]
[1742750714542,5.49303,2002.3,2002.2,1.3423]
[1742750718056,5.49303,2002.3,2002.2,2.0299]
[1742750718751,0.99913,2002.1,2002.0,0.00749232]
[1742750719060,0.99913,2002.1,2002.0,0.69509232]
[1742750720151,2.34703,2002.1,2002.0,2.02029232]
[1742750721157,0.99933,2001.7,2001.6,9.1658]
[1742750721352,3.205,2001.8,2001.7,0.99933]
[1742750721549,3.205,2001.8,2001.7,1.64993]
[1742750722551,3.205,2001.8,2001.7,3.68483]
[1742750724061,4.20428,2001.8,2001.7,3.68483]
[1742750724456,4.20428,2001.8,2001.7,2.6855]
[1742750726165,7.41208,2001.8,2001.7,2.6855]
[1742750726558,8.81788,2001.8,2001.7,2.6855]
[1742750734967,3.2078,2002.1,2002.0,0.99918]
[1742750735265,0.99911,2002.2,2001.7,3.68483]
[1742750735266,1.3294,2002.2,2001.9,2.49807]
[1742750735568,1.3294,2002.2,2002.1,0.99913]
[1742750736069,1.3294,2002.2,2002.1,2.39393]
[1742750736070,2.32848,2002.2,2002.1,2.39393]
[1742750736563,1.3294,2002.2,2002.1,2.39393]
[1742750738257,2.32848,2002.2,2002.1,2.39393]
[1742750741070,2.32848,2002.2,2002.1,1.3948]
[1742750742273,2.32848,2002.2,2002.1,2.39393]
[1742750742873,2.32848,2002.2,2002.1,1.3948]
[1742750743574,5.53348,2002.2,2002.1,1.3948]
[1742750744270,0.99928,2001.8,2001.7,0.99928]
[1742750744477,4.20706,2001.9,2001.6,7.2841]
[1742750744667,4.20706,2001.9,2001.7,0.99928]
[1742750745175,0.99928,2001.8,2001.7,0.99928]
[1742750745570,2.34368,2001.8,2001.7,2.36988]
[1742750746068,3.01128,2001.8,2001.7,1.3706]
[1742750746376,0.99938,2001.6,2001.5,1.00687232]
[1742750746675,0.99938,2001.6,2001.5,1.37809232]
[1742750746873,4.20438,2001.6,2001.5,1.37809232]
[1742750747070,4.20438,2001.6,2001.5,2.37752232]
[1742750749475,4.20438,2001.6,2001.5,1.37809232]
[1742750749674,4.20438,2001.6,2001.5,2.37752232]
[1742750749976,2.34376,2001.7,2001.6,0.99938]
[1742750750271,5.54873,2001.7,2001.6,2.30398]
[1742750750470,5.54873,2001.7,2001.6,2.99278]
[1742750751372,2.34373,2001.7,2001.6,2.99278]
[1742750751574,5.54873,2001.7,2001.6,2.99278]
[1742750751875,4.5494,2001.7,2001.6,2.99278]
[1742750752679,5.54873,2001.7,2001.6,2.99278]
[1742750753178,5.54873,2001.7,2001.6,1.9934]
[1742750753570,2.34373,2001.7,2001.6,1.3046]
[1742750753769,5.54873,2001.7,2001.6,1.3046]
[1742750759580,0.99938,2001.6,2001.5,1.00692232]
[1742750759770,5.60758,2001.6,2001.5,2.38592232]
[1742750760581,4.6082,2001.6,2001.5,2.38592232]
[1742750760784,5.60758,2001.6,2001.5,2.38592232]
[1742750763384,5.60758,2001.6,2001.5,1.38649232]
[1742750763772,5.60758,2001.6,2001.5,0.00749232]
[1742750780494,7.8132,2001.6,2001.5,1.64812232]
[1742750780685,8.81258,2001.6,2001.5,1.93249232]
[1742750780882,8.81258,2001.6,2001.5,2.93192232]
[1742750781085,8.81258,2001.6,2001.5,1.93249232]
[1742750783195,9.59317928,2001.6,2001.5,1.93249232]
[1742750783591,9.59317928,2001.6,2001.5,1.29129232]
[1742750786998,0.99948,2001.4,2001.3,0.678]
[1742750787198,4.20448,2001.4,2001.3,2.0417]
[1742750787597,5.49858,2001.4,2001.3,2.0417]
[1742750787799,0.99955,2001.3,2001.1,0.99959]
[1742750788001,5.50145,2001.3,2001.2,1.3637]
[1742750788794,5.50145,2001.3,2001.2,2.36328]
[1742750789099,5.50145,2001.3,2001.2,1.3637]
[1742750789297,5.50145,2001.3,2001.2,1.89880482]
[1742750790499,5.50145,2001.3,2001.2,1.3637]
[1742750797300,4.5019,2001.3,2001.2,2.36328]
[1742750797501,6.4128,2001.3,2001.2,2.36328]
[1742750798808,6.4128,2001.3,2001.2,1.3637]
[1742750799104,7.41233,2001.3,2001.2,1.3637]
[1742750799408,8.78083,2001.3,2001.2,1.3637]
[1742750800310,7.7813,2001.3,2001.2,1.3637]
[1742750800700,8.78083,2001.3,2001.2,1.3637]
[1742750800906,7.7813,2001.3,2001.2,1.3637]
[1742750801209,7.7813,2001.3,2001.2,2.36328]
[1742750802411,8.78083,2001.3,2001.2,1.3637]
[1742750807012,9.56142583,2001.3,2001.2,1.3637]
[1742750807914,8.78083,2001.3,2001.2,1.3637]
[1742750808213,0.99963,2001.1,2001.0,0.00499488]
[1742750808613,4.20463,2001.1,2001.0,0.00499488]
[1742750808813,5.49363,2001.1,2001.0,0.00499488]
[1742750809212,4.494,2001.1,2001.0,1.00467488]
[1742750809412,3.205,2001.1,2001.0,1.00467488]
[1742750810307,4.494,2001.1,2001.0,1.00467488]
[1742750817227,5.49363,2001.1,2001.0,0.00499488]
[1742750817418,6.82753,2001.1,2001.0,0.00499488]
[1742750817925,6.82753,2001.1,2001.0,1.28899488]
[1742750818320,5.8279,2001.1,2001.0,2.28867488]
[1742750818619,4.494,2001.1,2001.0,2.28867488]
[1742750819414,3.205,2001.1,2001.0,2.28867488]
[1742750819613,4.54919232,2001.3,2001.2,0.99958]
[1742750819614,3.21529232,2001.3,2001.2,0.99958]
[1742750819826,0.00749232,2001.3,2001.2,0.99958]
[1742750820025,0.00749232,2001.3,2001.2,2.28358]
[1742750825527,0.00749232,2001.3,2001.2,2.81885313]
[1742750826523,0.00749232,2001.3,2001.2,2.28358]
[1742750828827,3.2078,2001.9,2001.5,0.99943]
[1742750829019,2.1044759,2002.0,2001.9,0.99923]
[1742750829216,2.1044759,2002.0,2001.8,0.99924]
[1742750829425,1.4002,2001.9,2001.8,0.99924]
[1742750834030,2.0677,2001.9,2001.8,0.99924]
[1742750834830,2.7206,2001.9,2001.8,0.99924]
[1742750840330,1.4002,2001.9,2001.8,0.99924]
[1742750842721,2.39943,2001.9,2001.8,0.99924]
[1742750842925,2.7114,2001.9,2001.8,0.99924]
[1742750843534,3.71063,2001.9,2001.8,0.99924]
[1742750845335,3.71063,2001.9,2001.8,2.28224]
[1742750846347,6.91843,2001.9,2001.8,1.283]
[1742750846531,0.99928,2001.8,2001.7,0.99928]